[Event "Kvibergspelen 2022"]
[Site "Kviberg Park Hotel & Conference, Krutvagen 2, Gothenburg, Sweden"]
[Date "2022.09.30"]
[Round "1.15"]
[White "Eldh, Hjalmar"]
[Black "Johannesson, Oliver"]
[Result "0-1"]
[TimeControl "15 minutes + 5 seconds per move from move one (Round 1 - 4) / 90 minutes + 30 seconds per move from move one (Round 5 - 8)"]
[BlackTitle "FM"]
[WhiteFideId "1767968"]
[BlackFideId "2305623"]
[WhiteElo "1717"]
[BlackElo "2205"]

1. e4 {[%clk 00:15:07]} {[%emt 00:00:02]} c5 {[%clk 00:15:09]} {[%emt
00:00:02]} 2. Nf3 {[%clk 00:15:09]} {[%emt 00:00:02]} e6 {[%clk 00:15:12]}
{[%emt 00:00:02]} 3. d4 {[%clk 00:15:09]} {[%emt 00:00:05]} cxd4 {[%clk
00:15:16]} {[%emt 00:00:02]} 4. Nxd4 {[%clk 00:15:12]} {[%emt 00:00:02]} Nc6
{[%clk 00:15:19]} {[%emt 00:00:02]} 5. Be2 {[%clk 00:14:51]} {[%emt 00:00:25]}
Nf6 {[%clk 00:15:15]} {[%emt 00:00:10]} 6. Nc3 {[%clk 00:14:51]} {[%emt
00:00:05]} Qc7 {[%clk 00:15:15]} {[%emt 00:00:05]} 7. Be3 {[%clk 00:14:46]}
{[%emt 00:00:09]} a6 {[%clk 00:15:18]} {[%emt 00:00:03]} 8. O-O {[%clk
00:14:36]} {[%emt 00:00:15]} Bb4 {[%clk 00:15:21]} {[%emt 00:00:02]} 9. f3
{[%clk 00:14:30]} {[%emt 00:00:11]} O-O {[%clk 00:15:19]} {[%emt 00:00:07]} 10.
Nxc6 {[%clk 00:13:23]} {[%emt 00:01:13]} bxc6 {[%clk 00:14:47]} {[%emt
00:00:36]} 11. Qd4 {[%clk 00:10:55]} {[%emt 00:02:33]} a5 {[%clk 00:11:53]}
{[%emt 00:03:00]} 12. a3 {[%clk 00:09:53]} {[%emt 00:01:07]} Bd6 {[%clk
00:11:47]} {[%emt 00:00:10]} 13. g3 {[%clk 00:09:32]} {[%emt 00:00:26]} Be5
{[%clk 00:11:42]} {[%emt 00:00:10]} 14. Qd2 {[%clk 00:09:16]} {[%emt 00:00:21]}
d5 {[%clk 00:11:45]} {[%emt 00:00:02]} 15. exd5 {[%clk 00:09:11]} {[%emt
00:00:10]} cxd5 {[%clk 00:11:23]} {[%emt 00:00:27]} 16. Bd4 {[%clk 00:08:53]}
{[%emt 00:00:23]} Rb8 {[%clk 00:11:11]} {[%emt 00:00:18]} 17. Bxe5 {[%clk
00:08:46]} {[%emt 00:00:12]} Qxe5 {[%clk 00:11:14]} {[%emt 00:00:02]} 18. Rab1
{[%clk 00:08:17]} {[%emt 00:00:34]} Bd7 {[%clk 00:11:12]} {[%emt 00:00:07]} 19.
Rfe1 {[%clk 00:08:18]} {[%emt 00:00:04]} d4 {[%clk 00:09:51]} {[%emt 00:01:26]}
20. Nd1 {[%clk 00:08:16]} {[%emt 00:00:06]} Qc5 {[%clk 00:09:53]} {[%emt
00:00:03]} 21. b4 {[%clk 00:08:05]} {[%emt 00:00:17]} axb4 {[%clk 00:09:51]}
{[%emt 00:00:07]} 22. axb4 {[%clk 00:08:08]} {[%emt 00:00:02]} Qb6 {[%clk
00:09:42]} {[%emt 00:00:14]} 23. Nf2 {[%clk 00:07:59]} {[%emt 00:00:14]} Nd5
{[%clk 00:09:44]} {[%emt 00:00:03]} 24. Nd3 {[%clk 00:07:08]} {[%emt 00:00:56]}
Nc3 {[%clk 00:09:37]} {[%emt 00:00:12]} 25. Rb2 {[%clk 00:06:11]} {[%emt
00:01:02]} Bc6 {[%clk 00:09:40]} {[%emt 00:00:03]} 26. Nc5 {[%clk 00:05:58]}
{[%emt 00:00:18]} Rfd8 {[%clk 00:09:07]} {[%emt 00:00:37]} 27. Qg5 {[%clk
00:05:43]} {[%emt 00:00:20]} Rd5 {[%clk 00:08:49]} {[%emt 00:00:23]} 28. Qe7
{[%clk 00:04:30]} {[%emt 00:01:19]} Rxc5 {[%clk 00:08:22]} {[%emt 00:00:32]} 29.
Bd3 {[%clk 00:04:13]} {[%emt 00:00:21]} Rd5 {[%clk 00:07:07]} {[%emt 00:01:20]}
30. Ra1 {[%clk 00:04:07]} {[%emt 00:00:12]} Rd7 {[%clk 00:07:01]} {[%emt
00:00:10]} 31. Qh4 {[%clk 00:04:10]} {[%emt 00:00:02]} g6 {[%clk 00:06:30]}
{[%emt 00:00:36]} 32. Ra6 {[%clk 00:04:10]} {[%emt 00:00:06]} Qc7 {[%clk
00:06:14]} {[%emt 00:00:18]} 33. Qf6 {[%clk 00:03:27]} {[%emt 00:00:51]} Nd5
{[%clk 00:05:06]} {[%emt 00:01:13]} 34. Qxd4 {[%clk 00:03:18]} {[%emt
00:00:14]} Nxb4 {[%clk 00:04:57]} {[%emt 00:00:14]} 35. Qc5 {[%clk 00:02:29]}
{[%emt 00:00:53]} Nxa6 {[%clk 00:04:54]} {[%emt 00:00:08]} 0-1

[Event "Kvibergspelen 2022"]
[Site "Kviberg Park Hotel & Conference, Krutvagen 2, Gothenburg, Sweden"]
[Date "2022.09.30"]
[Round "1.16"]
[White "Rasti, Arvin"]
[Black "Westerlind, Sture"]
[Result "1-0"]
[TimeControl "15 minutes + 5 seconds per move from move one (Round 1 - 4) / 90 minutes + 30 seconds per move from move one (Round 5 - 8)"]
[WhiteFideId "1741160"]
[BlackFideId "1745654"]
[WhiteElo "2186"]
[BlackElo "1700"]

1. e4 {[%clk 00:15:09]} e6 {[%clk 00:15:08]} {[%emt 00:00:02]} 2. d4 {[%clk
00:15:11]} {[%emt 00:00:03]} d5 {[%clk 00:15:11]} {[%emt 00:00:02]} 3. Nc3
{[%clk 00:15:14]} {[%emt 00:00:02]} c6 {[%clk 00:15:12]} {[%emt 00:00:04]} 4.
Nf3 {[%clk 00:15:12]} {[%emt 00:00:07]} dxe4 {[%clk 00:14:30]} {[%emt
00:00:47]} 5. Nxe4 {[%clk 00:15:15]} {[%emt 00:00:02]} Be7 {[%clk 00:14:34]} 6.
Bd3 {[%clk 00:15:06]} {[%emt 00:00:15]} Nf6 {[%clk 00:14:37]} {[%emt 00:00:02]}
7. c3 {[%clk 00:14:52]} {[%emt 00:00:19]} Nbd7 {[%clk 00:14:34]} {[%emt
00:00:08]} 8. O-O {[%clk 00:14:07]} {[%emt 00:00:49]} Nxe4 {[%clk 00:14:36]}
{[%emt 00:00:03]} 9. Bxe4 {[%clk 00:14:12]} {[%emt 00:00:01]} Nf6 {[%clk
00:14:40]} 10. Bc2 {[%clk 00:14:13]} {[%emt 00:00:03]} O-O {[%clk 00:14:16]}
{[%emt 00:00:29]} 11. Qd3 {[%clk 00:13:58]} {[%emt 00:00:20]} c5 {[%clk
00:14:08]} {[%emt 00:00:13]} 12. Bg5 {[%clk 00:13:58]} {[%emt 00:00:04]} g6
{[%clk 00:14:12]} {[%emt 00:00:01]} 13. dxc5 {[%clk 00:13:50]} {[%emt
00:00:14]} Qxd3 {[%clk 00:14:06]} {[%emt 00:00:11]} 14. Bxd3 {[%clk 00:13:54]}
{[%emt 00:00:01]} Nd5 {[%clk 00:13:48]} {[%emt 00:00:22]} 15. Bxe7 {[%clk
00:13:32]} {[%emt 00:00:27]} Nxe7 {[%clk 00:13:52]} 16. Rfd1 {[%clk 00:13:26]}
{[%emt 00:00:11]} Nd5 {[%clk 00:13:35]} {[%emt 00:00:22]} 17. Bc4 {[%clk
00:13:21]} {[%emt 00:00:10]} Nf6 {[%clk 00:13:25]} {[%emt 00:00:15]} 18. Ne5
{[%clk 00:13:19]} {[%emt 00:00:07]} a5 {[%clk 00:12:49]} {[%emt 00:00:42]} 19.
f3 {[%clk 00:13:11]} {[%emt 00:00:13]} Kg7 {[%clk 00:12:31]} {[%emt 00:00:23]}
20. Kf2 {[%clk 00:13:05]} {[%emt 00:00:10]} Ng8 {[%clk 00:12:28]} {[%emt
00:00:09]} 21. Nd7 {[%clk 00:12:55]} {[%emt 00:00:15]} Re8 {[%clk 00:12:29]}
{[%emt 00:00:03]} 22. Nb6 {[%clk 00:12:56]} {[%emt 00:00:04]} Rb8 {[%clk
00:12:30]} {[%emt 00:00:04]} 23. Bb5 {[%clk 00:12:55]} {[%emt 00:00:06]} Re7
{[%clk 00:12:23]} {[%emt 00:00:12]} 24. b4 {[%clk 00:12:45]} {[%emt 00:00:15]}
axb4 {[%clk 00:12:25]} {[%emt 00:00:04]} 25. cxb4 {[%clk 00:12:49]} Nf6 {[%clk
00:12:17]} {[%emt 00:00:12]} 26. a4 {[%clk 00:12:51]} {[%emt 00:00:03]} Ne8
{[%clk 00:12:07]} {[%emt 00:00:15]} 27. Bxe8 {[%clk 00:12:46]} {[%emt
00:00:10]} Rxe8 {[%clk 00:12:09]} {[%emt 00:00:03]} 28. a5 {[%clk 00:12:34]}
{[%emt 00:00:17]} e5 {[%clk 00:12:13]} {[%emt 00:00:01]} 29. Nxc8 {[%clk
00:12:35]} {[%emt 00:00:04]} Rbxc8 {[%clk 00:12:15]} {[%emt 00:00:03]} 30. Rd7
{[%clk 00:12:39]} Rb8 {[%clk 00:12:16]} {[%emt 00:00:05]} 31. Rad1 {[%clk
00:12:40]} {[%emt 00:00:03]} Kf8 {[%clk 00:12:13]} {[%emt 00:00:08]} 32. Rc7
{[%clk 00:12:28]} {[%emt 00:00:17]} Re7 {[%clk 00:12:14]} {[%emt 00:00:04]} 33.
Rdd7 {[%clk 00:12:32]} {[%emt 00:00:02]} Rxd7 {[%clk 00:12:15]} {[%emt
00:00:04]} 34. Rxd7 {[%clk 00:12:36]} Ke8 {[%clk 00:12:19]} {[%emt 00:00:02]}
35. Rc7 {[%clk 00:12:39]} h5 {[%clk 00:12:17]} {[%emt 00:00:06]} 36. b5 {[%clk
00:12:43]} {[%emt 00:00:02]} f6 {[%clk 00:12:14]} {[%emt 00:00:09]} 37. Rh7
{[%clk 00:12:43]} {[%emt 00:00:04]} Rd8 {[%clk 00:11:36]} {[%emt 00:00:44]} 38.
Rxb7 {[%clk 00:12:30]} {[%emt 00:00:18]} Rd2+ {[%clk 00:11:26]} {[%emt
00:00:15]} 39. Ke1 {[%clk 00:12:32]} {[%emt 00:00:03]} Ra2 {[%clk 00:11:10]}
{[%emt 00:00:22]} 40. a6 {[%clk 00:12:34]} {[%emt 00:00:03]} 1-0

[Event "Kvibergspelen 2022"]
[Site "Kviberg Park Hotel & Conference, Krutvagen 2, Gothenburg, Sweden"]
[Date "2022.09.30"]
[Round "1.17"]
[White "Stridh, Mattias"]
[Black "Malmqvist, Glenn"]
[Result "0-1"]
[TimeControl "15 minutes + 5 seconds per move from move one (Round 1 - 4) / 90 minutes + 30 seconds per move from move one (Round 5 - 8)"]
[WhiteFideId "1762338"]
[BlackFideId "1705750"]
[WhiteElo "1699"]
[BlackElo "2172"]

1. e4 {[%clk 00:15:09]} e5 {[%clk 00:15:07]} {[%emt 00:00:03]} 2. Nf3 {[%clk
00:15:12]} {[%emt 00:00:02]} Nc6 {[%clk 00:15:11]} {[%emt 00:00:01]} 3. Bc4
{[%clk 00:15:16]} {[%emt 00:00:01]} Bc5 {[%clk 00:15:14]} {[%emt 00:00:01]} 4.
c3 {[%clk 00:15:20]} {[%emt 00:00:02]} Nf6 {[%clk 00:15:17]} {[%emt 00:00:02]}
5. d3 {[%clk 00:15:24]} O-O {[%clk 00:15:16]} {[%emt 00:00:05]} 6. O-O {[%clk
00:15:24]} {[%emt 00:00:04]} a6 {[%clk 00:15:12]} {[%emt 00:00:10]} 7. a4
{[%clk 00:15:27]} {[%emt 00:00:02]} d6 {[%clk 00:15:14]} {[%emt 00:00:03]} 8.
h3 {[%clk 00:14:57]} {[%emt 00:00:36]} Ba7 {[%clk 00:15:07]} {[%emt 00:00:12]}
9. Re1 {[%clk 00:14:58]} {[%emt 00:00:04]} Ne7 {[%clk 00:14:10]} {[%emt
00:01:02]} 10. Nbd2 {[%clk 00:14:55]} {[%emt 00:00:07]} Ng6 {[%clk 00:13:51]}
{[%emt 00:00:24]} 11. Nf1 {[%clk 00:14:56]} {[%emt 00:00:04]} Qe7 {[%clk
00:13:47]} {[%emt 00:00:09]} 12. b4 {[%clk 00:14:04]} {[%emt 00:00:57]} Be6
{[%clk 00:13:40]} {[%emt 00:00:12]} 13. Bxe6 {[%clk 00:13:11]} {[%emt
00:00:58]} Qxe6 {[%clk 00:13:32]} {[%emt 00:00:12]} 14. Ng3 {[%clk 00:13:05]}
{[%emt 00:00:11]} Rfe8 {[%clk 00:12:52]} {[%emt 00:00:45]} 15. Be3 {[%clk
00:12:13]} {[%emt 00:00:58]} Bxe3 {[%clk 00:12:43]} {[%emt 00:00:15]} 16. fxe3
{[%clk 00:11:54]} {[%emt 00:00:25]} Rad8 {[%clk 00:12:29]} {[%emt 00:00:18]} 17.
b5 {[%clk 00:11:21]} {[%emt 00:00:38]} d5 {[%clk 00:12:15]} {[%emt 00:00:19]}
18. exd5 {[%clk 00:10:58]} {[%emt 00:00:28]} Qxd5 {[%clk 00:12:17]} {[%emt
00:00:03]} 19. bxa6 {[%clk 00:10:33]} {[%emt 00:00:31]} bxa6 {[%clk 00:12:14]}
{[%emt 00:00:07]} 20. d4 {[%clk 00:10:24]} {[%emt 00:00:14]} exd4 {[%clk
00:11:26]} {[%emt 00:00:53]} 21. cxd4 {[%clk 00:08:57]} {[%emt 00:01:32]} c5
{[%clk 00:11:14]} {[%emt 00:00:17]} 22. dxc5 {[%clk 00:08:01]} {[%emt
00:01:01]} Qxc5 {[%clk 00:11:15]} {[%emt 00:00:04]} 23. Qc1 {[%clk 00:08:04]}
{[%emt 00:00:03]} Qa7 {[%clk 00:10:40]} {[%emt 00:00:40]} 24. Nd4 {[%clk
00:06:42]} {[%emt 00:01:26]} Ne5 {[%clk 00:09:13]} {[%emt 00:01:32]} 25. Ra3
{[%clk 00:06:10]} {[%emt 00:00:38]} Rc8 {[%clk 00:06:25]} {[%emt 00:02:53]} 26.
Qb1 {[%clk 00:04:02]} {[%emt 00:02:13]} Nc4 {[%clk 00:05:42]} {[%emt 00:00:48]}
27. Rc3 {[%clk 00:03:05]} {[%emt 00:01:02]} Nd5 {[%clk 00:02:45]} {[%emt
00:03:02]} 28. Rxc4 {[%clk 00:01:16]} {[%emt 00:01:54]} Rxc4 {[%clk 00:02:49]}
29. Qb3 {[%clk 00:01:20]} Rxd4 {[%clk 00:02:47]} {[%emt 00:00:07]} 30. Nf5
{[%clk 00:01:08]} {[%emt 00:00:17]} Rd2 {[%clk 00:01:39]} {[%emt 00:01:13]} 31.
Nd6 {[%clk 00:00:23]} {[%emt 00:00:50]} Re6 {[%clk 00:01:14]} {[%emt 00:00:30]}
32. Nc4 {[%clk 00:00:24]} {[%emt 00:00:04]} Rd4 {[%clk 00:01:10]} {[%emt
00:00:10]} 33. Rf1 {[%clk 00:00:20]} {[%emt 00:00:09]} Rde4 {[%clk 00:00:59]}
{[%emt 00:00:15]} 34. Re1 {[%clk 00:00:09]} {[%emt 00:00:17]} Nxe3 {[%clk
00:00:56]} {[%emt 00:00:09]} 35. Rxe3 {[%clk 00:00:11]} {[%emt 00:00:02]} Rxe3
{[%clk 00:01:00]} {[%emt 00:00:01]} 0-1

[Event "Kvibergspelen 2022"]
[Site "Kviberg Park Hotel & Conference, Krutvagen 2, Gothenburg, Sweden"]
[Date "2022.09.30"]
[Round "1.18"]
[White "Nygren, David"]
[Black "Nordberg, Patrik"]
[Result "1-0"]
[TimeControl "15 minutes + 5 seconds per move from move one (Round 1 - 4) / 90 minutes + 30 seconds per move from move one (Round 5 - 8)"]
[WhiteFideId "1704761"]
[BlackFideId "1771620"]
[WhiteElo "2165"]
[BlackElo "1698"]

1. e4 {[%clk 00:15:07]} {[%emt 00:00:02]} e5 {[%clk 00:15:03]} {[%emt
00:00:08]} 2. Nf3 {[%clk 00:15:09]} {[%emt 00:00:02]} Nc6 {[%clk 00:15:06]}
{[%emt 00:00:03]} 3. Bb5 {[%clk 00:15:12]} {[%emt 00:00:03]} a6 {[%clk
00:15:09]} {[%emt 00:00:02]} 4. Ba4 {[%clk 00:15:14]} {[%emt 00:00:02]} Nf6
{[%clk 00:15:08]} {[%emt 00:00:06]} 5. d4 {[%clk 00:15:18]} {[%emt 00:00:02]}
Nxe4 {[%clk 00:11:13]} {[%emt 00:04:00]} 6. Qe2 {[%clk 00:15:20]} {[%emt
00:00:02]} b5 {[%clk 00:03:57]} {[%emt 00:07:21]} 7. dxe5 {[%clk 00:13:56]}
{[%emt 00:01:29]} Nc5 {[%clk 00:03:28]} 8. Bb3 {[%clk 00:13:46]} {[%emt
00:00:50]} Be7 {[%clk 00:03:08]} 9. Nc3 {[%clk 00:13:29]} {[%emt 00:00:47]} O-O
{[%clk 00:02:43]} 10. Bd5 {[%clk 00:13:31]} {[%emt 00:00:33]} Rb8 {[%clk
00:02:28]} 11. O-O {[%clk 00:13:20]} {[%emt 00:00:35]} Nb4 {[%emt 00:00:12]} 12.
Rd1 {[%clk 00:12:55]} {[%emt 00:00:28]} d6 {[%clk 00:01:56]} {[%emt 00:00:32]}
13. Bf4 {[%clk 00:12:25]} {[%emt 00:00:34]} Ne6 {[%clk 00:01:00]} {[%emt
00:01:03]} 14. Bg3 {[%clk 00:12:04]} {[%emt 00:00:25]} Kh8 {[%clk 00:00:54]}
{[%emt 00:00:11]} 15. Bb3 {[%clk 00:11:39]} {[%emt 00:00:30]} c5 {[%clk
00:00:34]} {[%emt 00:00:26]} 16. exd6 {[%clk 00:11:30]} {[%emt 00:00:14]} Bf6
{[%clk 00:00:21]} {[%emt 00:00:17]} 17. d7 {[%clk 00:11:06]} {[%emt 00:00:29]}
Bb7 {[%clk 00:00:25]} 18. Bxe6 {[%clk 00:10:21]} {[%emt 00:00:50]} fxe6 {[%clk
00:00:29]} {[%emt 00:00:02]} 19. Bxb8 {[%clk 00:10:21]} {[%emt 00:00:05]} Qxb8
{[%clk 00:00:33]} 20. Ne4 {[%clk 00:09:32]} {[%emt 00:00:53]} Be7 {[%clk
00:00:29]} {[%emt 00:00:09]} 21. Neg5 {[%clk 00:08:35]} {[%emt 00:01:02]} Bxf3
{[%clk 00:00:20]} {[%emt 00:00:14]} 22. Nxf3 {[%clk 00:08:39]} {[%emt
00:00:02]} Qf4 {[%clk 00:00:18]} {[%emt 00:00:07]} 23. Qxe6 {[%clk 00:08:28]}
{[%emt 00:00:15]} 1-0

[Event "Kvibergspelen 2022"]
[Site "Kviberg Park Hotel & Conference, Krutvagen 2, Gothenburg, Sweden"]
[Date "2022.09.30"]
[Round "1.19"]
[White "Brobakken, Geir"]
[Black "Lindahl, Jonas"]
[Result "1-0"]
[TimeControl "15 minutes + 5 seconds per move from move one (Round 1 - 4) / 90 minutes + 30 seconds per move from move one (Round 5 - 8)"]
[WhiteFideId "1511270"]
[BlackFideId "1710060"]
[WhiteElo "1696"]
[BlackElo "2165"]

1. e4 {[%clk 00:15:08]} {[%emt 00:00:01]} e6 {[%clk 00:15:03]} {[%emt
00:00:08]} 2. d4 {[%clk 00:15:07]} {[%emt 00:00:05]} d5 {[%clk 00:15:07]} 3. e5
{[%clk 00:15:03]} {[%emt 00:00:10]} c5 {[%clk 00:15:11]} {[%emt 00:00:02]} 4.
c3 {[%clk 00:15:07]} {[%emt 00:00:01]} Nc6 {[%clk 00:15:14]} {[%emt 00:00:02]}
5. Nf3 {[%clk 00:15:11]} {[%emt 00:00:01]} Bd7 {[%clk 00:15:14]} {[%emt
00:00:05]} 6. Bd3 {[%clk 00:15:09]} {[%emt 00:00:06]} cxd4 {[%clk 00:14:43]}
{[%emt 00:00:36]} 7. cxd4 {[%clk 00:15:10]} {[%emt 00:00:03]} Qb6 {[%clk
00:14:45]} {[%emt 00:00:04]} 8. Bc2 {[%clk 00:14:52]} {[%emt 00:00:23]} Nb4
{[%clk 00:14:45]} {[%emt 00:00:06]} 9. O-O {[%clk 00:14:32]} {[%emt 00:00:24]}
Ne7 {[%clk 00:14:19]} {[%emt 00:00:32]} 10. Nc3 {[%clk 00:13:55]} {[%emt
00:00:42]} Nxc2 {[%clk 00:14:10]} {[%emt 00:00:13]} 11. Qxc2 {[%clk 00:13:57]}
{[%emt 00:00:02]} Nf5 {[%clk 00:14:03]} {[%emt 00:00:13]} 12. Be3 {[%clk
00:13:28]} {[%emt 00:00:35]} Be7 {[%clk 00:13:39]} {[%emt 00:00:28]} 13. Rac1
{[%clk 00:13:06]} {[%emt 00:00:26]} Rc8 {[%clk 00:12:23]} {[%emt 00:01:21]} 14.
Qd2 {[%clk 00:12:59]} {[%emt 00:00:12]} O-O {[%clk 00:12:12]} {[%emt 00:00:17]}
15. a3 {[%clk 00:12:49]} {[%emt 00:00:16]} a5 {[%clk 00:11:09]} {[%emt
00:01:07]} 16. Ne2 {[%clk 00:11:36]} {[%emt 00:01:17]} Rc4 {[%clk 00:09:34]}
{[%emt 00:01:41]} 17. Rc3 {[%clk 00:10:05]} {[%emt 00:01:37]} Rxc3 {[%clk
00:09:06]} {[%emt 00:00:33]} 18. Nxc3 {[%clk 00:10:03]} {[%emt 00:00:07]} Rc8
{[%clk 00:09:01]} {[%emt 00:00:11]} 19. Re1 {[%clk 00:08:54]} {[%emt 00:01:13]}
Qb3 {[%clk 00:08:42]} {[%emt 00:00:23]} 20. Rc1 {[%clk 00:08:21]} {[%emt
00:00:38]} Rc4 {[%clk 00:07:57]} {[%emt 00:00:50]} 21. h3 {[%clk 00:08:12]}
{[%emt 00:00:15]} b5 {[%clk 00:07:23]} {[%emt 00:00:40]} 22. Qd1 {[%clk
00:07:50]} {[%emt 00:00:26]} Rxc3 {[%clk 00:06:04]} {[%emt 00:01:24]} 23. bxc3
{[%clk 00:07:46]} {[%emt 00:00:09]} Qxd1+ {[%clk 00:06:05]} {[%emt 00:00:03]}
24. Rxd1 {[%clk 00:07:49]} {[%emt 00:00:02]} Nxe3 {[%clk 00:06:00]} {[%emt
00:00:11]} 25. fxe3 {[%clk 00:07:53]} {[%emt 00:00:01]} Bxa3 {[%clk 00:06:03]}
{[%emt 00:00:02]} 26. Ra1 {[%clk 00:07:31]} b4 {[%clk 00:06:06]} {[%emt
00:00:28]} 27. cxb4 {[%clk 00:07:35]} Bxb4 {[%clk 00:06:08]} {[%emt 00:00:04]}
28. Ne1 {[%clk 00:07:19]} g6 {[%clk 00:05:50]} {[%emt 00:00:44]} 29. Nd3 {[%clk
00:06:03]} Bd2 {[%clk 00:04:49]} {[%emt 00:02:27]} 30. Kf2 {[%clk 00:06:02]}
Bb5 {[%clk 00:04:50]} {[%emt 00:00:10]} 31. Nc5 {[%clk 00:05:57]} Kg7 {[%clk
00:04:35]} {[%emt 00:00:30]} 32. Ra2 {[%clk 00:05:25]} Bb4 {[%clk 00:04:22]}
{[%emt 00:00:54]} 33. Na4 {[%clk 00:04:56]} Bc4 {[%clk 00:04:19]} {[%emt
00:00:43]} 34. Ra1 {[%clk 00:04:37]} Bb3 {[%clk 00:04:16]} {[%emt 00:00:31]} 35.
Nc5 {[%clk 00:04:31]} Bc4 {[%clk 00:04:09]} {[%emt 00:00:23]} 36. Na4 {[%clk
00:04:33]} g5 {[%clk 00:04:11]} {[%emt 00:00:06]} 37. Nc5 {[%clk 00:04:24]} h5
{[%clk 00:04:07]} {[%emt 00:00:23]} 38. Nb7 {[%clk 00:04:10]} Bc3 {[%clk
00:03:51]} {[%emt 00:00:40]} 39. Ra3 {[%clk 00:03:58]} Bb4 {[%clk 00:03:07]}
{[%emt 00:01:06]} 40. Ra1 {[%clk 00:04:02]} Bd3 {[%clk 00:02:32]} {[%emt
00:00:41]} 41. Nxa5 {[%clk 00:03:58]} Be4 {[%clk 00:02:32]} {[%emt 00:00:13]}
42. Nb3 {[%clk 00:03:53]} g4 {[%clk 00:02:27]} {[%emt 00:00:20]} 43. hxg4
{[%clk 00:03:44]} {[%emt 00:00:15]} hxg4 {[%clk 00:02:30]} {[%emt 00:00:02]} 44.
g3 {[%clk 00:03:44]} {[%emt 00:00:06]} Kh6 {[%clk 00:02:15]} {[%emt 00:00:19]}
45. Nc5 {[%clk 00:03:35]} {[%emt 00:00:14]} Bg6 {[%clk 00:02:18]} {[%emt
00:00:03]} 46. Nd7 {[%clk 00:03:33]} {[%emt 00:00:07]} Kg5 {[%clk 00:02:12]}
{[%emt 00:00:11]} 47. Ra7 {[%clk 00:03:11]} {[%emt 00:00:27]} Kf5 {[%clk
00:01:57]} {[%emt 00:00:19]} 48. Nf6 {[%clk 00:03:12]} {[%emt 00:00:04]} Bf8
{[%clk 00:01:52]} {[%emt 00:00:11]} 49. Nd7 {[%clk 00:03:02]} {[%emt 00:00:15]}
Bh6 {[%clk 00:01:45]} {[%emt 00:00:12]} 50. Nc5 {[%clk 00:03:00]} {[%emt
00:00:07]} Bf8 {[%clk 00:01:39]} {[%emt 00:00:11]} 51. Ke2 {[%clk 00:02:55]}
{[%emt 00:00:10]} Kg5 {[%clk 00:01:38]} {[%emt 00:00:06]} 52. Ra1 {[%clk
00:02:53]} {[%emt 00:00:07]} Be7 {[%clk 00:01:39]} {[%emt 00:00:04]} 53. Rf1
{[%clk 00:02:49]} {[%emt 00:00:08]} Bf5 {[%clk 00:01:42]} {[%emt 00:00:03]} 54.
Nd3 {[%clk 00:02:48]} {[%emt 00:00:07]} Bf8 {[%clk 00:01:29]} {[%emt 00:00:17]}
55. Nf4 {[%clk 00:02:47]} {[%emt 00:00:06]} Kh6 {[%clk 00:01:27]} {[%emt
00:00:07]} 56. Nxd5 {[%clk 00:02:44]} {[%emt 00:00:08]} Be7 {[%clk 00:01:18]}
{[%emt 00:00:14]} 57. Nxe7 {[%clk 00:02:47]} {[%emt 00:00:02]} 1-0